lending/lending_fUSD_20260310
["ID","MTS","AMOUNT","RATE_DAILY","PERIOD"]
[408074938,1773111057955,-150.0,0.00019793,4]
[408074939,1773111057965,-150.0,0.00019793,4]
[408074940,1773111057975,-150.0,0.00019793,4]
[408074941,1773111057986,-150.0,0.00019793,4]
[408074942,1773111057995,-150.0,0.00019794,4]
[408074943,1773111058005,-173.38921623,0.00019794,4]
[408074944,1773111058015,-232.35599994,0.00019794,4]
[408074945,1773111058024,-251.77478284,0.00019794,4]
[408074946,1773111058033,-481.5607502,0.00019794,4]
[408074947,1773111058041,-190.63499452,0.00019794,4]
[408074948,1773111058050,-150.0,0.00019795,4]
[408074949,1773111058060,-150.0,0.00019795,4]
[408074950,1773111058069,-150.0,0.00019796,4]
[408074951,1773111058078,-173.38921623,0.00019796,4]
[408074952,1773111058087,-232.35599994,0.00019796,4]
[408074953,1773111058096,-251.77478284,0.00019796,4]
[408074954,1773111058105,-481.5607502,0.00019796,4]
[408074955,1773111058116,-190.63499452,0.00019796,4]
[408074956,1773111058127,-150.0,0.00019797,4]
[408074957,1773111058137,-150.0,0.00019798,4]
[408074958,1773111058146,-150.0,0.00019798,4]
[408074959,1773111058156,-173.38921623,0.00019799,4]
[408074960,1773111058164,-232.35599994,0.00019799,4]
[408074961,1773111058174,-251.77478284,0.00019799,4]
[408074962,1773111058182,-481.5607502,0.00019799,4]
[408074963,1773111058191,-190.63499452,0.00019799,4]
[408074964,1773111058200,-3098.41,0.00019799,2]
[408074965,1773111058210,-3098.41,0.00019799,2]
[408074966,1773111058219,-3098.41,0.00019799,2]
[408074967,1773111058229,-150.0,0.00019799,4]
[408074968,1773111058238,-150.0,0.00019799,4]
[408074969,1773111058249,-1284.0,0.000198,2]
[408074970,1773111058258,-462166.3929995,0.000198,2]
[408074971,1773111058267,-152.414519,0.000198,2]
[408074972,1773111058276,-151.0,0.000198,2]
[408074973,1773111058286,-151.0,0.000198,2]
[408074974,1773111058295,-151.0,0.000198,2]
[408074975,1773111058303,-151.0,0.000198,2]
[408074976,1773111058312,-151.0,0.000198,2]
[408074977,1773111058321,-151.0,0.000198,2]
[408074978,1773111058330,-151.0,0.000198,2]
[408074979,1773111058339,-153.482682,0.000198,2]
[408074980,1773111058348,-400.0,0.000198,7]
[408074981,1773111058357,-150.0,0.000198,4]
[408074982,1773111058366,-150.0,0.000198,4]
[408074983,1773111058375,-173.38921623,0.00019801,4]
[408074984,1773111058385,-232.35599994,0.00019801,4]
[408074985,1773111058393,-251.77478284,0.00019801,4]
[408074986,1773111058404,-150.0,0.00019801,4]
[408074987,1773111058413,-481.5607502,0.00019801,4]
[408074988,1773111058423,-190.63499452,0.00019801,4]
[408074989,1773111058432,-150.0,0.00019801,4]
[408074990,1773111058441,-150.0,0.00019802,4]
[408074991,1773111058453,-150.0,0.00019803,4]
[408074992,1773111058464,-173.38921623,0.00019803,4]
[408074993,1773111058474,-232.35599994,0.00019803,4]
[408074994,1773111058483,-251.77478284,0.00019803,4]
[408074995,1773111058494,-481.5607502,0.00019803,4]
[408074996,1773111058505,-190.63499452,0.00019803,4]
[408074997,1773111058514,-150.0,0.00019804,4]
[408074998,1773111058523,-173.38921623,0.00019805,4]
[408074999,1773111058534,-232.35599994,0.00019805,4]
[408075000,1773111058543,-150.0,0.00019805,4]
[408075001,1773111058552,-251.77478284,0.00019805,4]
[408075002,1773111058561,-150.0,0.00019805,4]
[408075003,1773111058571,-481.5607502,0.00019805,4]
[408075004,1773111058579,-150.0,0.00019805,4]
[408075005,1773111058589,-150.0,0.00019805,4]
[408075006,1773111058598,-190.63499452,0.00019805,4]
[408075007,1773111058607,-150.0,0.00019807,4]
[408075008,1773111058616,-173.38921623,0.00019807,4]
[408075009,1773111058626,-232.35599994,0.00019807,4]
[408075010,1773111058634,-251.77478284,0.00019807,4]
[408075011,1773111058643,-481.5607502,0.00019807,4]
[408075012,1773111058652,-190.63499452,0.00019807,4]
[408075013,1773111058661,-150.0,0.00019808,4]
[408075014,1773111058670,-150.0,0.00019808,4]
[408075015,1773111058679,-150.0,0.00019809,4]
[408075016,1773111058688,-173.38921623,0.0001981,4]
[408075017,1773111058697,-232.35599994,0.0001981,4]
[408075018,1773111058707,-251.77478284,0.0001981,4]
[408075019,1773111058716,-481.5607502,0.0001981,4]
[408075020,1773111058725,-190.63499452,0.0001981,4]
[408075021,1773111058734,-150.0,0.0001981,4]
[408075022,1773111058743,-150.0,0.0001981,4]
[408075023,1773111058753,-1699.89438616,0.0001981,2]
[408075024,1773111058762,-150.0,0.00019811,4]
[408075025,1773111058771,-254.23748886,0.00019811,2]
[408075026,1773111058781,-150.0,0.00019811,4]
[408075027,1773111058790,-150.0,0.00019811,4]
[408075028,1773111058800,-150.0,0.00019812,4]
[408075029,1773111058810,-173.38921623,0.00019812,4]
[408075030,1773111058821,-232.35599994,0.00019812,4]
[408075031,1773111058831,-251.77478284,0.00019812,4]
[408075032,1773111058841,-481.5607502,0.00019812,4]
[408075033,1773111058850,-190.63499452,0.00019812,4]
[408075034,1773111058861,-150.0,0.00019812,4]
[408075035,1773111058870,-150.0,0.00019813,4]
[408075036,1773111058880,-173.38921623,0.00019814,4]
[408075037,1773111058889,-232.35599994,0.00019814,4]
[408075038,1773111058898,-251.77478284,0.00019814,4]
[408075039,1773111058907,-481.5607502,0.00019814,4]
[408075040,1773111058916,-190.63499452,0.00019814,4]
[408075041,1773111058925,-150.0,0.00019815,4]
[408075042,1773111058934,-150.0,0.00019815,4]
[408075043,1773111058943,-150.0,0.00019815,4]
[408075044,1773111058953,-173.38921623,0.00019816,4]
[408075045,1773111058962,-232.35599994,0.00019816,4]
[408075046,1773111058971,-251.77478284,0.00019816,4]
[408075047,1773111058980,-481.5607502,0.00019816,4]
[408075048,1773111058990,-190.63499452,0.00019816,4]
[408075049,1773111058999,-150.0,0.00019817,4]
[408075050,1773111059008,-150.0,0.00019817,4]
[408075051,1773111059018,-150.0,0.00019817,4]
[408075052,1773111059027,-150.0,0.00019817,4]
[408075053,1773111059036,-173.38921623,0.00019818,4]
[408075054,1773111059045,-232.35599994,0.00019818,4]
[408075055,1773111059054,-251.77478284,0.00019818,4]
[408075056,1773111059063,-481.5607502,0.00019818,4]
[408075057,1773111059073,-190.63499452,0.00019818,4]
[408075058,1773111059083,-150.0,0.00019819,4]
[408075059,1773111059092,-150.0,0.0001982,4]
[408075060,1773111059101,-150.0,0.0001982,4]
[408075061,1773111059111,-173.38921623,0.00019821,4]
[408075062,1773111059122,-232.35599994,0.00019821,4]
[408075063,1773111059131,-251.77478284,0.00019821,4]
[408075064,1773111059141,-150.0,0.00019821,4]
[408075065,1773111059150,-481.5607502,0.00019821,4]
[408075066,1773111059160,-190.63499452,0.00019821,4]
[408075067,1773111059170,-150.0,0.00019821,4]
[408075068,1773111059181,-150.0,0.00019822,4]
[408075069,1773111059191,-173.38921623,0.00019823,4]
[408075070,1773111059200,-232.35599994,0.00019823,4]
[408075071,1773111059210,-251.77478284,0.00019823,4]
[408075072,1773111059221,-481.5607502,0.00019823,4]
[408075073,1773111059232,-190.63499452,0.00019823,4]
[408075074,1773111059242,-150.0,0.00019823,4]
[408075075,1773111059257,-150.0,0.00019823,4]
[408075076,1773111059267,-150.0,0.00019823,4]
[408075077,1773111059277,-150.0,0.00019824,4]
[408075078,1773111059287,-150.0,0.00019825,4]
[408075079,1773111059297,-150.0,0.00019825,4]
[408075080,1773111059306,-173.38921623,0.00019825,4]
[408075081,1773111059315,-232.35599994,0.00019825,4]
[408075082,1773111059325,-251.77478284,0.00019825,4]
[408075083,1773111059334,-481.5607502,0.00019825,4]
[408075084,1773111059344,-190.63499452,0.00019825,4]
[408075085,1773111059353,-150.0,0.00019825,4]
[408075086,1773111059363,-150.0,0.00019827,4]
[408075087,1773111059372,-150.0,0.00019827,4]
[408075088,1773111059382,-173.38921623,0.00019827,4]
[408075089,1773111059391,-232.35599994,0.00019827,4]
[408075090,1773111059401,-251.77478284,0.00019827,4]
[408075091,1773111059411,-481.5607502,0.00019827,4]
[408075092,1773111059420,-190.63499452,0.00019827,4]
[408075093,1773111059429,-150.0,0.00019828,4]
[408075094,1773111059438,-173.38921623,0.0001983,4]
[408075095,1773111059448,-232.35599994,0.0001983,4]
[408075096,1773111059461,-150.0,0.0001983,4]
[408075097,1773111059471,-251.77478284,0.0001983,4]
[408075098,1773111059480,-150.0,0.0001983,4]
[408075099,1773111059489,-481.5607502,0.0001983,4]
[408075100,1773111059500,-150.0,0.0001983,4]
[408075101,1773111059509,-150.0,0.0001983,4]
[408075102,1773111059518,-190.63499452,0.0001983,4]
[408075103,1773111059528,-150.0,0.00019831,4]
[408075104,1773111059537,-173.38921623,0.00019832,4]
[408075105,1773111059547,-232.35599994,0.00019832,4]
[408075106,1773111059556,-251.77478284,0.00019832,4]
[408075107,1773111059565,-481.5607502,0.00019832,4]
[408075108,1773111059574,-190.63499452,0.00019832,4]
[408075109,1773111059584,-150.0,0.00019832,4]
[408075110,1773111059593,-150.0,0.00019832,4]
[408075111,1773111059602,-150.0,0.00019834,4]
[408075112,1773111059611,-173.38921623,0.00019834,4]
[408075113,1773111059620,-232.35599994,0.00019834,4]
[408075114,1773111059629,-251.77478284,0.00019834,4]
[408075115,1773111059638,-481.5607502,0.00019834,4]
[408075116,1773111059647,-190.63499452,0.00019834,4]
[408075117,1773111059656,-150.0,0.00019834,4]
[408075118,1773111059665,-150.0,0.00019835,4]
[408075119,1773111059676,-158.96460613,0.00019836,2]
[408075120,1773111059686,-150.0,0.00019836,4]
[408075121,1773111059695,-150.0,0.00019836,4]
[408075122,1773111059705,-173.38921623,0.00019836,4]
[408075123,1773111059714,-232.35599994,0.00019836,4]
[408075124,1773111059724,-251.77478284,0.00019836,4]
[408075125,1773111059733,-481.5607502,0.00019836,4]
[408075126,1773111059743,-190.63499452,0.00019836,4]
[408075127,1773111059752,-150.0,0.00019837,4]
[408075128,1773111059762,-150.0,0.00019837,4]
[408075129,1773111059777,-150.0,0.00019838,4]
[408075130,1773111059792,-173.38921623,0.00019838,4]
[408075131,1773111059802,-232.35599994,0.00019838,4]
[408075132,1773111059812,-251.77478284,0.00019838,4]
[408075133,1773111059821,-481.5607502,0.00019838,4]
[408075134,1773111059830,-190.63499452,0.00019838,4]
[408075135,1773111059839,-150.0,0.00019839,4]
[408075136,1773111059848,-150.0,0.00019839,4]
[408075137,1773111059857,-150.0,0.00019839,4]
[408075138,1773111059867,-173.38921623,0.00019841,4]
[408075139,1773111059876,-232.35599994,0.00019841,4]
[408075140,1773111059886,-251.77478284,0.00019841,4]
[408075141,1773111059896,-150.0,0.00019841,4]
[408075142,1773111059909,-481.5607502,0.00019841,4]
[408075143,1773111059919,-190.63499452,0.00019841,4]
[408075144,1773111059929,-150.0,0.00019841,4]
[408075145,1773111059939,-200.0,0.00019841,2]
[408075146,1773111059949,-150.0,0.00019842,4]
[408075147,1773111059959,-150.0,0.00019842,4]
[408075148,1773111059969,-150.0,0.00019842,4]
[408075149,1773111059979,-150.0,0.00019842,4]
[408075150,1773111059989,-150.0,0.00019842,4]
[408075151,1773111059999,-173.38921623,0.00019843,4]
[408075152,1773111060008,-232.35599994,0.00019843,4]
[408075153,1773111060018,-251.77478284,0.00019843,4]
[408075154,1773111060027,-481.5607502,0.00019843,4]
[408075155,1773111060040,-190.63499452,0.00019843,4]
[408075156,1773111060050,-150.0,0.00019844,4]
[408075157,1773111060060,-173.38921623,0.00019845,4]
[408075158,1773111060069,-232.35599994,0.00019845,4]
[408075159,1773111060078,-251.77478284,0.00019845,4]
[408075160,1773111060087,-481.5607502,0.00019845,4]
[408075161,1773111060097,-190.63499452,0.00019845,4]
[408075162,1773111060106,-150.0,0.00019845,4]
[408075163,1773111060115,-150.0,0.00019846,4]
[408075164,1773111060124,-150.0,0.00019846,4]
[408075165,1773111060133,-150.0,0.00019847,4]
[408075166,1773111060142,-173.38921623,0.00019847,4]
[408075167,1773111060151,-232.35599994,0.00019847,4]
[408075168,1773111060161,-251.77478284,0.00019847,4]
[408075169,1773111060170,-481.5607502,0.00019847,4]
[408075170,1773111060179,-190.63499452,0.00019847,4]
[408075171,1773111060189,-150.0,0.00019848,4]
[408075172,1773111060197,-150.0,0.00019848,4]
[408075173,1773111060207,-150.0,0.00019849,4]
[408075174,1773111060216,-173.38921623,0.00019849,4]
[408075175,1773111060226,-232.35599994,0.00019849,4]
[408075176,1773111060235,-251.77478284,0.00019849,4]
[408075177,1773111060244,-481.5607502,0.00019849,4]
[408075178,1773111060254,-190.63499452,0.00019849,4]
[408075179,1773111060263,-150.0,0.0001985,4]
[408075180,1773111060273,-150.0,0.0001985,4]
[408075181,1773111060284,-150.0,0.0001985,4]
[408075182,1773111060295,-150.0,0.00019851,4]
[408075183,1773111060304,-173.38921623,0.00019852,4]
[408075184,1773111060314,-232.35599994,0.00019852,4]
[408075185,1773111060323,-251.77478284,0.00019852,4]
[408075186,1773111060332,-481.5607502,0.00019852,4]
[408075187,1773111060341,-190.63499452,0.00019852,4]
[408075188,1773111060350,-2114.0,0.00019852,2]
[408075189,1773111060359,-173.38921623,0.00019854,4]
[408075190,1773111060368,-232.35599994,0.00019854,4]
[408075191,1773111060378,-150.0,0.00019854,4]
[408075192,1773111060387,-150.0,0.00019854,4]
[408075193,1773111060396,-251.77478284,0.00019854,4]
[408075194,1773111060406,-150.0,0.00019854,4]
[408075195,1773111060415,-150.0,0.00019854,4]
[408075196,1773111060424,-481.5607502,0.00019854,4]
[408075197,1773111060433,-150.0,0.00019854,4]
[408075198,1773111060442,-150.0,0.00019854,4]
[408075199,1773111060452,-150.0,0.00019854,4]
[408075200,1773111060466,-150.0,0.00019854,4]
[408075201,1773111060476,-190.63499452,0.00019854,4]
[408075202,1773111060485,-173.38921623,0.00019856,4]
[408075203,1773111060495,-232.35599994,0.00019856,4]
[408075204,1773111060507,-251.77478284,0.00019856,4]
[408075205,1773111060516,-481.5607502,0.00019856,4]
[408075206,1773111060526,-190.63499452,0.00019856,4]
[408075207,1773111060535,-150.0,0.00019856,4]
[408075208,1773111060544,-150.0,0.00019858,4]
[408075209,1773111060553,-150.0,0.00019858,4]
[408075210,1773111060562,-150.0,0.00019858,4]
[408075211,1773111060571,-173.38921623,0.00019858,4]
[408075212,1773111060581,-232.35599994,0.00019858,4]
[408075213,1773111060590,-251.77478284,0.00019858,4]
[408075214,1773111060599,-481.5607502,0.00019858,4]
[408075215,1773111060609,-190.63499452,0.00019858,4]
[408075216,1773111060618,-150.0,0.00019859,4]
[408075217,1773111060627,-150.0,0.0001986,4]
[408075218,1773111060639,-150.0,0.0001986,4]
[408075219,1773111060648,-173.38921623,0.00019861,4]
[408075220,1773111060658,-232.35599994,0.00019861,4]
[408075221,1773111060667,-251.77478284,0.00019861,4]
[408075222,1773111060677,-150.0,0.00019861,4]
[408075223,1773111060687,-481.5607502,0.00019861,4]
[408075224,1773111060696,-190.63499452,0.00019861,4]
[408075225,1773111060706,-150.0,0.00019861,4]
[408075226,1773111060715,-150.0,0.00019862,4]
[408075227,1773111060725,-150.0,0.00019862,4]
[408075228,1773111060735,-150.0,0.00019862,4]
[408075229,1773111060745,-173.38921623,0.00019863,4]
[408075230,1773111060765,-232.35599994,0.00019863,4]
[408075231,1773111060777,-251.77478284,0.00019863,4]
[408075232,1773111060789,-481.5607502,0.00019863,4]
[408075233,1773111060800,-190.63499452,0.00019863,4]
[408075234,1773111061010,-150.0,0.00019864,4]
[408075235,1773111061022,-173.38921623,0.00019865,4]
[408075236,1773111061034,-232.35599994,0.00019865,4]
[408075237,1773111061046,-251.77478284,0.00019865,4]
[408075238,1773111061057,-481.5607502,0.00019865,4]
[408075239,1773111061069,-190.63499452,0.00019865,4]
[408075240,1773111061081,-150.0,0.00019865,4]
[408075241,1773111061090,-150.0,0.00019866,4]
[408075242,1773111061103,-150.0,0.00019866,4]
[408075243,1773111061116,-150.0,0.00019866,4]
[408075244,1773111061126,-150.0,0.00019866,4]
[408075245,1773111061136,-150.0,0.00019867,4]
[408075246,1773111061146,-173.38921623,0.00019867,4]
[408075247,1773111061156,-232.35599994,0.00019867,4]
[408075248,1773111061168,-251.77478284,0.00019867,4]
[408075249,1773111061180,-481.5607502,0.00019867,4]
[408075250,1773111061189,-190.63499452,0.00019867,4]
[408075251,1773111061199,-622.044,0.00019868,2]
[408075252,1773111061209,-1254.531,0.00019868,2]
[408075253,1773111061219,-1342.0,0.00019868,2]
[408075254,1773111061230,-1046.492,0.00019868,2]
[408075255,1773111061240,-1280.0,0.00019868,2]
[408075256,1773111061250,-3750.0,0.00019868,2]
[408075257,1773111061260,-415.889,0.00019868,2]
[408075258,1773111061269,-6014.071,0.00019868,2]
[408075259,1773111061279,-150.0,0.00019868,4]
[408075260,1773111061289,-150.0,0.00019868,4]
[408075261,1773111061300,-150.0,0.00019869,4]
[408075262,1773111061311,-173.38921623,0.00019869,4]
[408075263,1773111061322,-232.35599994,0.00019869,4]
[408075264,1773111061331,-251.77478284,0.00019869,4]
[408075265,1773111061341,-481.5607502,0.00019869,4]
[408075266,1773111061351,-190.63499452,0.00019869,4]
[408075267,1773111061360,-150.0,0.0001987,4]
[408075268,1773111061369,-150.0,0.00019871,4]
[408075269,1773111061381,-150.0,0.00019871,4]
[408075270,1773111061391,-173.38921623,0.00019872,4]
[408075271,1773111061400,-232.35599994,0.00019872,4]
[408075272,1773111061408,-251.77478284,0.00019872,4]
[408075273,1773111061417,-481.5607502,0.00019872,4]
[408075274,1773111061426,-190.63499452,0.00019872,4]
[408075275,1773111061435,-4884.03845108,0.00019872,2]
[408075276,1773111061445,-5705.84263154,0.00019872,2]
[408075277,1773111061457,-1323.17342736,0.00019872,2]
[408075278,1773111061467,-1699.89438616,0.00019872,2]
[408075279,1773111061477,-150.0,0.00019872,4]
[408075280,1773111061487,-150.0,0.00019872,4]
[408075281,1773111061499,-150.0,0.00019873,4]
[408075282,1773111061509,-150.0,0.00019873,4]
[408075283,1773111061519,-173.38921623,0.00019874,4]
[408075284,1773111061532,-232.35599994,0.00019874,4]
[408075285,1773111061542,-251.77478284,0.00019874,4]
[408075286,1773111061551,-481.5607502,0.00019874,4]
[408075287,1773111061560,-190.63499452,0.00019874,4]
[408075288,1773111061570,-150.0,0.00019874,4]
[408075289,1773111061579,-150.0,0.00019875,4]
[408075290,1773111061588,-150.0,0.00019876,4]
[408075291,1773111061597,-173.38921623,0.00019876,4]
[408075292,1773111061606,-232.35599994,0.00019876,4]
[408075293,1773111061616,-251.77478284,0.00019876,4]
[408075294,1773111061627,-481.5607502,0.00019876,4]
[408075295,1773111061638,-190.63499452,0.00019876,4]
[408075296,1773111061647,-150.0,0.00019877,4]
[408075297,1773111061656,-173.38921623,0.00019878,4]
[408075298,1773111061665,-232.35599994,0.00019878,4]
[408075299,1773111061674,-150.0,0.00019878,4]
[408075300,1773111061684,-251.77478284,0.00019878,4]
[408075301,1773111061695,-150.0,0.00019878,4]
[408075302,1773111061705,-481.5607502,0.00019878,4]
[408075303,1773111061718,-150.0,0.00019878,4]
[408075304,1773111061727,-150.0,0.00019878,4]
[408075305,1773111061739,-190.63499452,0.00019878,4]
[408075306,1773111061749,-150.0,0.0001988,4]
[408075307,1773111061759,-173.38921623,0.0001988,4]
[408075308,1773111061769,-232.35599994,0.0001988,4]
[408075309,1773111061779,-251.77478284,0.0001988,4]
[408075310,1773111061791,-150.0,0.0001988,4]
[408075311,1773111061802,-481.5607502,0.0001988,4]
[408075312,1773111061814,-190.63499452,0.0001988,4]
[408075313,1773111061823,-150.0,0.00019881,4]
[408075314,1773111061833,-150.0,0.00019881,4]
[408075315,1773111061843,-150.0,0.00019882,4]
[408075316,1773111061853,-173.38921623,0.00019883,4]
[408075317,1773111061864,-232.35599994,0.00019883,4]
[408075318,1773111061875,-251.77478284,0.00019883,4]
[408075319,1773111061886,-481.5607502,0.00019883,4]
[408075320,1773111061896,-190.63499452,0.00019883,4]
[408075321,1773111061907,-150.0,0.00019883,4]
[408075322,1773111061917,-150.0,0.00019883,4]
[408075323,1773111061928,-150.0,0.00019884,4]
[408075324,1773111061937,-150.0,0.00019884,4]
[408075325,1773111061946,-150.0,0.00019884,4]
[408075326,1773111061956,-150.0,0.00019885,4]
[408075327,1773111061967,-173.38921623,0.00019885,4]
[408075328,1773111061978,-232.35599994,0.00019885,4]
[408075329,1773111061988,-251.77478284,0.00019885,4]
[408075330,1773111061999,-481.5607502,0.00019885,4]
[408075331,1773111062010,-190.63499452,0.00019885,4]
[408075332,1773111062021,-150.0,0.00019886,4]
[408075333,1773111062033,-150.0,0.00019886,4]
[408075334,1773111062044,-3098.41,0.00019887,2]
[408075335,1773111062054,-173.38921623,0.00019887,4]
[408075336,1773111062066,-232.35599994,0.00019887,4]
[408075337,1773111062075,-251.77478284,0.00019887,4]
[408075338,1773111062088,-481.5607502,0.00019887,4]
[408075339,1773111062099,-190.63499452,0.00019887,4]
[408075340,1773111062110,-150.0,0.00019888,4]
[408075341,1773111062122,-250.89676964,0.00019888,2]
[408075342,1773111062135,-151.0,0.00019888,2]
[408075343,1773111062144,-1000.0,0.00019888,2]
[408075344,1773111062155,-1000.0,0.00019888,2]
[408075345,1773111062164,-1000.0,0.00019888,2]
[408075346,1773111062172,-1000.0,0.00019888,2]
[408075347,1773111062181,-1000.0,0.00019888,2]
[408075348,1773111062190,-1000.0,0.00019888,2]
[408075349,1773111062199,-1000.0,0.00019888,2]
[408075350,1773111062209,-1000.0,0.00019888,2]
[408075351,1773111062218,-1000.0,0.00019888,2]
[408075352,1773111062227,-1000.0,0.00019888,2]
[408075353,1773111062237,-1000.0,0.00019888,2]
[408075354,1773111062247,-1000.0,0.00019888,2]
[408075355,1773111062256,-1000.0,0.00019888,2]
[408075356,1773111062266,-1000.0,0.00019888,2]
[408075357,1773111062275,-1000.0,0.00019888,2]
[408075358,1773111062284,-1000.0,0.00019888,2]
[408075359,1773111062294,-1000.0,0.00019888,2]
[408075360,1773111062304,-1000.0,0.00019888,2]
[408075361,1773111062313,-1000.0,0.00019888,2]
[408075362,1773111062323,-1000.0,0.00019888,2]
[408075363,1773111062332,-1000.0,0.00019888,2]
[408075364,1773111062341,-1000.0,0.00019888,2]
[408075365,1773111062350,-1000.0,0.00019888,2]
[408075366,1773111062359,-1000.0,0.00019888,2]
[408075367,1773111062368,-1000.0,0.00019888,2]
[408075368,1773111062377,-1000.0,0.00019888,2]
[408075369,1773111062386,-1000.0,0.00019888,2]
[408075370,1773111062395,-1000.0,0.00019888,2]
[408075371,1773111062405,-1000.0,0.00019888,2]
[408075372,1773111062415,-1000.0,0.00019888,2]
[408075373,1773111062424,-284.81692364,0.00019888,2]
[408075374,1773111062433,-419.25497,0.00019888,2]
[408075375,1773111062442,-419.25497,0.00019888,2]
[408075376,1773111062456,-150.0,0.00019888,4]
[408075377,1773111062465,-150.0,0.00019888,4]
[408075378,1773111062474,-173.38921623,0.00019889,4]
[408075379,1773111062484,-232.35599994,0.00019889,4]
[408075380,1773111062494,-251.77478284,0.00019889,4]
[408075381,1773111062504,-481.5607502,0.00019889,4]
[408075382,1773111062513,-190.63499452,0.00019889,4]
[408075383,1773111062523,-150.0,0.0001989,4]
[408075384,1773111062533,-150.0,0.0001989,4]
[408075385,1773111062542,-150.0,0.0001989,4]
[408075386,1773111062551,-150.0,0.0001989,4]
[408075387,1773111062560,-150.0,0.0001989,4]
[408075388,1773111062569,-173.38921623,0.00019892,4]
[408075389,1773111062578,-232.35599994,0.00019892,4]
[408075390,1773111062587,-251.77478284,0.00019892,4]
[408075391,1773111062596,-481.5607502,0.00019892,4]
[408075392,1773111062606,-190.63499452,0.00019892,4]
[408075393,1773111062616,-502.5510018,0.00019892,2]
[408075394,1773111062625,-209.50473574,0.00019892,2]
[408075395,1773111062637,-150.0,0.00019892,4]
[408075396,1773111062646,-150.0,0.00019893,4]
[408075397,1773111062656,-150.0,0.00019893,4]
[408075398,1773111062665,-173.38921623,0.00019894,4]
[408075399,1773111062674,-232.35599994,0.00019894,4]
[408075400,1773111062684,-251.77478284,0.00019894,4]
[408075401,1773111062693,-481.5607502,0.00019894,4]
[408075402,1773111062704,-190.63499452,0.00019894,4]
[408075403,1773111062714,-150.0,0.00019894,4]
[408075404,1773111062723,-150.0,0.00019895,4]
[408075405,1773111062732,-173.38921623,0.00019896,4]
[408075406,1773111062741,-232.35599994,0.00019896,4]
[408075407,1773111062750,-251.77478284,0.00019896,4]
[408075408,1773111062759,-481.5607502,0.00019896,4]
[408075409,1773111062768,-190.63499452,0.00019896,4]
[408075410,1773111062777,-150.0,0.00019896,4]
[408075411,1773111062786,-150.0,0.00019896,4]
[408075412,1773111062795,-150.0,0.00019896,4]
[408075413,1773111062804,-150.0,0.00019897,4]
[408075414,1773111062813,-150.0,0.00019898,4]
[408075415,1773111062823,-150.0,0.00019898,4]
[408075416,1773111062832,-1108.75120466,0.00019898,2]
[408075417,1773111062841,-173.38921623,0.00019898,4]
[408075418,1773111062851,-232.35599994,0.00019898,4]
[408075419,1773111062860,-251.77478284,0.00019898,4]
[408075420,1773111062869,-481.5607502,0.00019898,4]
[408075421,1773111062879,-190.63499452,0.00019898,4]
[408075422,1773111062888,-150.0,0.00019899,4]
[408075423,1773111062897,-278.15109678,0.000199,3]
[408075424,1773111062906,-25000.0,0.000199,3]
[408075425,1773111062916,-400.0,0.000199,7]
[408075426,1773111062925,-150.0,0.000199,4]
[408075427,1773111062936,-150.0,0.000199,4]
[408075428,1773111062945,-173.38921623,0.000199,4]
[408075429,1773111062955,-232.35599994,0.000199,4]
[408075430,1773111062964,-251.77478284,0.000199,4]
[408075431,1773111062974,-150.0,0.000199,4]
[408075432,1773111062983,-481.5607502,0.000199,4]
[408075433,1773111062992,-190.63499452,0.000199,4]
[408075434,1773111063002,-150.0,0.00019901,4]
[408075435,1773111063011,-1629.55,0.00019902,2]
[408075436,1773111063021,-173.38921623,0.00019903,4]
[408075437,1773111063030,-232.35599994,0.00019903,4]